bitfinex/quotes_BTCUSD_20250114
["timestamp","ask_amount","ask_price","bid_price","bid_amount"]
[1736874602172,0.0008534,96057.0,96056.0,0.1]
[1736874602377,0.0008534,96057.0,96056.0,0.9027118]
[1736874602542,0.0008534,96057.0,96056.0,1.2512138]
[1736874602744,0.0008534,96057.0,96056.0,1.1512138]
[1736874603002,0.0008534,96057.0,96056.0,1.2512138]
[1736874603402,0.0008534,96057.0,96056.0,1.2282138]
[1736874603613,0.0008534,96057.0,96056.0,1.1865938]
[1736874603950,0.0008534,96057.0,96056.0,1.2865938]
[1736874604222,0.0008534,96057.0,96056.0,0.97887971]
[1736874604417,0.0008534,96057.0,96056.0,0.80453571]
[1736874604824,0.0008534,96057.0,96056.0,0.82214255]
[1736874605050,0.0008534,96057.0,96056.0,0.60253571]
[1736874605247,0.0098534,96057.0,96056.0,0.70353571]
[1736874605843,0.00976135,96057.0,96056.0,0.60353571]
[1736874607445,0.00076135,96057.0,96056.0,0.60253571]
[1736874607647,0.00076135,96057.0,96056.0,0.60753571]
[1736874608038,0.00076135,96057.0,96056.0,0.60653571]
[1736874608207,0.00076135,96057.0,96056.0,0.61053571]
[1736874608637,0.00176135,96057.0,96056.0,0.61653571]
[1736874609787,0.00176135,96057.0,96056.0,0.71653571]
[1736874609989,0.00176135,96057.0,96056.0,0.81653571]
[1736874611638,0.00176135,96057.0,96056.0,1.78433471]
[1736874611846,0.208116,96101.0,96090.0,0.208138]
[1736874612050,0.208097,96109.0,96090.0,0.18975421]
[1736874612296,0.208099,96108.0,96090.0,0.18975421]
[1736874612494,0.208101,96107.0,96092.0,0.208133]
[1736874612698,0.208108,96104.0,96092.0,0.26020088]
[1736874613210,0.20825697,96104.0,96092.0,0.26020088]
[1736874613364,0.20811,96103.0,96093.0,0.208131]
[1736874613563,0.20811,96103.0,96093.0,0.26019888]
[1736874613760,0.208127,96095.0,96093.0,0.05206788]
[1736874614836,0.2094279,96095.0,96093.0,0.05206788]
[1736874615435,0.07970093,96094.0,96093.0,0.05306788]
[1736874615664,0.0784,96094.0,96093.0,0.05306788]
[1736874616076,0.07970094,96094.0,96093.0,0.05306788]
[1736874616772,0.0784,96094.0,96093.0,0.05206788]
[1736874616931,0.35212785,96094.0,96093.0,0.05406788]
[1736874617136,0.60082692,96094.0,96093.0,0.05406788]
[1736874617341,0.0804,96067.0,96049.0,0.01035744]
[1736874617594,0.208219,96053.0,96039.0,0.208248]
[1736874617803,0.208219,96053.0,96040.0,0.13768633]
[1736874618201,0.208219,96053.0,96039.0,0.10422692]
[1736874618202,0.208229,96049.0,96039.0,0.01018612]
[1736874618712,0.208229,96049.0,96039.0,0.00049749]
[1736874619065,0.00130143,96048.0,96039.0,0.00049749]
[1736874619273,0.00130148,96051.0,96039.0,0.00049749]
[1736874619481,0.208238,96044.0,96039.0,0.00049749]
[1736874619689,0.208238,96044.0,96039.0,0.00109749]
[1736874620270,0.208246,96040.0,96039.0,0.00109749]
[1736874620673,0.208246,96040.0,96039.0,0.00209749]
[1736874620674,0.20954761,96040.0,96039.0,0.00209749]
[1736874620872,0.208246,96040.0,96039.0,0.00209749]
[1736874621130,0.208246,96040.0,96039.0,0.00109749]
[1736874621518,0.208246,96040.0,96039.0,0.00209749]
[1736874621714,0.208246,96040.0,96039.0,0.00309749]
[1736874622847,0.208246,96040.0,96039.0,0.00209749]
[1736874623680,0.20954761,96040.0,96039.0,0.00309749]
[1736874624714,0.20823,96048.0,96039.0,0.00309749]
[1736874625059,0.208232,96047.0,96039.0,0.00309749]
[1736874625182,0.0804,96055.0,96039.0,0.00309749]
[1736874625183,0.416481,96043.0,96039.0,0.00309749]
[1736874625390,0.00130167,96042.0,96039.0,0.00309749]
[1736874625594,0.208244,96041.0,96039.0,0.00309749]
[1736874625804,0.00130174,96040.0,96039.0,0.00209749]
[1736874626173,0.00130174,96040.0,96039.0,0.00109749]
[1736874626615,0.00230174,96040.0,96039.0,0.00109749]
[1736874626820,0.00130174,96040.0,96039.0,0.00109749]
[1736874627229,0.00230174,96040.0,96039.0,0.00109749]
[1736874627383,0.00130174,96040.0,96039.0,0.00109749]
[1736874628209,0.10552866,96040.0,96039.0,0.00288837]
[1736874628409,0.35412866,96040.0,96039.0,0.00288837]
[1736874628614,0.35282692,96040.0,96039.0,0.00288837]
[1736874628812,0.1,96036.0,96006.0,0.01062149]
[1736874629009,0.208299,96016.0,96005.0,0.00194166]
[1736874629210,0.416546,96028.0,96006.0,0.20832]
[1736874629438,0.00130195,96027.0,96010.0,0.208311]
[1736874629695,0.208274,96028.0,96015.0,0.2083]
[1736874630637,0.208276,96026.0,96015.0,0.2083]
[1736874630851,0.208276,96026.0,96015.0,0.25904]
[1736874631295,0.208276,96026.0,96015.0,0.26104]
[1736874631506,0.208276,96026.0,96015.0,0.25904]
[1736874631705,0.208281,96024.0,96015.0,0.05074]
[1736874631904,0.00897702,96025.0,96015.0,0.05374]
[1736874632110,0.208285,96022.0,96015.0,0.05274]
[1736874632325,0.00898332,96021.0,96015.0,0.05274]
[1736874632471,0.208289,96020.0,96015.0,0.05374]
[1736874632670,0.00893281,96019.0,96015.0,0.05374]
[1736874632972,0.00893281,96019.0,96015.0,0.05274]
[1736874633220,0.00893281,96019.0,96015.0,0.04974]
[1736874633420,0.00893281,96019.0,96015.0,0.05274]
[1736874633927,0.00893063,96018.0,96015.0,0.04974]
[1736874634138,0.208262,96033.0,96019.0,0.20829]
[1736874634328,0.1,96051.0,96020.0,0.13768633]
[1736874634329,0.00895608,96032.0,96020.0,0.13768633]
[1736874634563,0.214633,96046.0,96037.0,0.208252]
[1736874634564,0.208233,96046.0,96037.0,0.208252]
[1736874634807,0.208237,96044.0,96021.0,0.1967]
[1736874634976,0.20824,96043.0,96037.0,0.04974]
[1736874635181,0.00742757,96043.0,96038.0,0.20825]
[1736874635383,0.00742757,96043.0,96037.0,0.10422692]
[1736874635384,0.00742757,96043.0,96042.0,0.208242]
[1736874635542,0.208216,96054.0,96042.0,0.208242]
[1736874635744,0.00742058,96053.0,96042.0,0.257982]
[1736874635963,0.00742058,96053.0,96045.0,0.208233]
[1736874636182,0.208208,96058.0,96045.0,0.257973]
[1736874636346,0.00049657,96058.0,96045.0,0.257973]
[1736874636549,0.21564265,96057.0,96045.0,0.257973]
[1736874636769,0.001,96046.0,96045.0,0.257973]
[1736874636976,0.208209,96057.0,96045.0,0.04974]
[1736874637172,0.208209,96057.0,96046.0,0.208233]
[1736874637393,0.00743365,96056.0,96046.0,0.257973]
[1736874637596,0.208214,96055.0,96046.0,0.257973]
[1736874637752,0.208231,96048.0,96046.0,0.04974]
[1736874637952,0.00740642,96047.0,96046.0,0.04974]
[1736874638488,0.208213,96056.0,96046.0,0.04974]
[1736874638690,0.00741731,96055.0,96047.0,0.208231]
[1736874638929,0.00049657,96058.0,96047.0,0.257971]
[1736874638930,0.208209,96057.0,96047.0,0.257971]
[1736874639150,0.00741949,96056.0,96047.0,0.04974]
[1736874639291,0.208214,96055.0,96047.0,0.04974]
[1736874639490,0.208227,96049.0,96047.0,0.04974]
[1736874639742,0.00741951,96048.0,96047.0,0.04974]
[1736874640708,0.00741951,96048.0,96047.0,0.05074]
[1736874640913,0.00741951,96048.0,96047.0,0.04974]
[1736874641404,0.00841951,96048.0,96047.0,0.04974]
[1736874642560,0.00741951,96048.0,96047.0,0.04974]
[1736874642944,0.00741951,96048.0,96047.0,0.05074]
[1736874643146,0.00741951,96048.0,96047.0,0.04974]
[1736874643548,0.00741951,96048.0,96047.0,0.05174]
[1736874643744,0.09061951,96048.0,96047.0,0.05174]
[1736874643953,0.00741951,96048.0,96047.0,0.05174]
[1736874644359,0.00741951,96048.0,96047.0,0.05274]
[1736874645709,0.00741951,96048.0,96047.0,0.05174]
[1736874646569,0.00741951,96048.0,96047.0,0.04974]
[1736874646731,0.01041951,96048.0,96047.0,0.04974]
[1736874647134,0.00741951,96048.0,96047.0,0.04974]
[1736874647461,0.00841951,96048.0,96047.0,0.04974]
[1736874647782,0.00941951,96048.0,96047.0,0.04974]
[1736874648156,0.00841951,96048.0,96047.0,0.04974]
[1736874649670,0.00741951,96048.0,96047.0,0.04974]
[1736874650078,0.00741951,96048.0,96047.0,0.05174]
[1736874651668,0.00741951,96048.0,96047.0,0.05274]
[1736874651669,0.00846587,96048.0,96047.0,0.05274]
[1736874652669,0.12329192,96048.0,96047.0,0.05274]
[1736874652866,0.11269279,96048.0,96047.0,0.05074]
[1736874653337,0.23869279,96048.0,96047.0,0.05074]
[1736874653570,0.308231,96047.0,96046.0,0.00179088]
[1736874653788,0.41991939,96047.0,96046.0,0.00179088]
[1736874653919,0.208281,96024.0,96014.0,0.13879086]
[1736874654123,0.00740921,96023.0,96014.0,0.13879086]
[1736874654441,0.208267,96031.0,96018.0,0.208292]
[1736874654617,0.02036201,96043.0,96016.0,0.208298]
[1736874654863,0.208274,96028.0,96016.0,0.208298]
[1736874655084,0.416548,96028.0,96016.0,0.00014931]
[1736874655261,0.00741266,96027.0,96016.0,0.00014931]
[1736874655995,0.208276,96026.0,96016.0,0.00014931]
[1736874656367,0.0074083,96025.0,96016.0,0.00014931]
[1736874656889,0.0074083,96025.0,96016.0,0.00114931]
[1736874657466,0.0074083,96025.0,96016.0,0.00014931]
[1736874657662,0.0084083,96025.0,96016.0,0.00014931]
[1736874658109,0.0074083,96025.0,96016.0,0.00014931]
[1736874658287,0.0084083,96025.0,96016.0,0.00014931]
[1736874658461,0.208281,96024.0,96016.0,0.00014931]
[1736874658668,0.2156901,96024.0,96016.0,0.00014931]
[1736874658876,0.0074091,96024.0,96016.0,0.00014931]
[1736874659267,0.002,96025.0,96024.0,0.208281]
[1736874659802,0.001,96025.0,96024.0,0.51004924]
[1736874660006,0.001,96025.0,96024.0,0.50900792]
[1736874660445,0.001,96025.0,96024.0,0.58490792]
[1736874660702,0.0008533,96048.0,96047.0,0.208231]
[1736874661202,0.0008533,96048.0,96036.0,0.15]
[1736874661401,0.0008533,96048.0,96043.0,0.208238]
[1736874661792,0.0008533,96048.0,96046.0,0.208231]
[1736874663509,0.0018533,96048.0,96047.0,0.0777]
[1736874663720,0.0018533,96048.0,96047.0,0.18296798]
[1736874664765,0.0008533,96048.0,96047.0,0.18296798]
[1736874665128,0.0008533,96048.0,96047.0,0.18596798]
[1736874665498,0.0008533,96048.0,96047.0,0.19636423]
[1736874665699,0.0008533,96048.0,96047.0,0.34532317]
[1736874665899,0.0008533,96048.0,96047.0,0.40162317]
[1736874666166,0.0018533,96048.0,96047.0,0.40162317]
[1736874669401,0.0018533,96048.0,96047.0,0.27462317]
[1736874671318,0.0018533,96048.0,96047.0,0.01]
[1736874674072,0.0018533,96048.0,96047.0,0.723018]
[1736874674268,0.09342738,96088.0,96078.0,0.208162]
[1736874674475,0.09392426,96088.0,96078.0,0.208162]
[1736874674774,0.00630595,96087.0,96078.0,0.10526768]
[1736874674937,0.00049688,96088.0,96084.0,0.20815]
[1736874675541,0.00049688,96088.0,96081.0,0.00104065]
[1736874675688,0.00049688,96088.0,96078.0,0.208162]
[1736874676178,0.00631406,96087.0,96078.0,0.416325]
[1736874676297,0.00631406,96087.0,96078.0,0.208162]
[1736874676953,0.00631406,96087.0,96078.0,0.211162]
[1736874677180,0.00631406,96087.0,96078.0,0.209162]
[1736874677391,0.00631406,96087.0,96073.0,0.01042253]
[1736874677392,0.208146,96086.0,96073.0,0.01042253]
[1736874677543,0.00631406,96087.0,96073.0,0.21859553]
[1736874677757,0.00631406,96087.0,96078.0,0.001]
[1736874678489,0.00631406,96087.0,96078.0,0.003]
[1736874678711,0.00631406,96087.0,96078.0,0.001]
[1736874678915,0.00716756,96087.0,96078.0,0.001]
[1736874679328,0.00821392,96087.0,96073.0,0.208173]
[1736874679510,0.00716756,96087.0,96073.0,0.208173]
[1736874679687,0.208155,96083.0,96078.0,0.002]
[1736874679910,0.208155,96083.0,96071.0,0.15]
[1736874680123,0.00573807,96082.0,96072.0,0.208177]
[1736874680326,0.00573807,96082.0,96073.0,0.208175]
[1736874680529,0.00104636,96085.0,96060.0,0.208203]
[1736874680729,0.208172,96075.0,96060.0,0.208203]
[1736874681126,0.208175,96073.0,96061.0,0.15]
[1736874681386,0.208175,96073.0,96062.0,0.208198]
[1736874681589,0.00571767,96072.0,96062.0,0.208198]
[1736874681889,0.208167,96077.0,96062.0,0.416396]
[1736874682237,0.00572637,96076.0,96062.0,0.208198]
[1736874682440,0.20817,96075.0,96059.0,0.15]
[1736874682682,0.00104636,96074.0,96059.0,0.358203]
[1736874682875,0.208175,96073.0,96059.0,0.358203]
[1736874683052,0.208175,96073.0,96061.0,0.001]
[1736874683391,0.00572856,96072.0,96063.0,0.208196]
[1736874683590,0.00572856,96072.0,96069.0,0.208181]
[1736874683796,0.0008535,96087.0,96061.0,0.15]
[1736874683941,0.0057713,96086.0,96070.0,0.24191325]
[1736874684139,0.0008535,96087.0,96071.0,0.00104077]
[1736874684339,0.00581782,96086.0,96076.0,0.208168]
[1736874685903,0.00581782,96086.0,96076.0,0.21839492]
[1736874686560,0.00681782,96086.0,96076.0,0.21839492]
[1736874686771,0.00681782,96086.0,96083.0,0.208151]
[1736874686898,0.00581782,96086.0,96084.0,0.10526753]
[1736874687098,0.0008535,96087.0,96084.0,0.10526753]
[1736874687300,0.0008535,96087.0,96085.0,0.15]
[1736874687561,0.0008535,96087.0,96086.0,0.2552675]
[1736874687773,0.0008535,96087.0,96086.0,0.25422692]
[1736874688292,0.0778,96129.0,96086.0,0.25422692]
[1736874688293,0.39488177,96142.0,96088.0,0.1]
[1736874688495,0.39488177,96142.0,96101.0,0.2307]
[1736874688496,0.18685477,96142.0,96101.0,0.2307]
[1736874688695,0.14014108,96139.0,96110.0,0.53432092]
[1736874688866,0.00100189,96111.0,96110.0,0.51132092]
[1736874689826,0.00100189,96111.0,96110.0,0.46232092]
[1736874690431,0.00100189,96111.0,96110.0,0.48686239]
[1736874690968,0.00100189,96111.0,96110.0,0.48186239]
[1736874691441,0.00087658,96111.0,96110.0,0.48186239]
[1736874691572,0.00087658,96111.0,96110.0,0.37763547]
[1736874691775,0.00087658,96111.0,96110.0,0.37263547]
[1736874691975,0.00087658,96111.0,96110.0,0.48586239]
[1736874692202,0.00087658,96111.0,96110.0,0.47686239]
[1736874692746,0.00087658,96111.0,96110.0,0.48286239]
[1736874693157,0.00087658,96111.0,96110.0,0.01654147]
[1736874693365,0.00087658,96111.0,96110.0,0.01054147]
[1736874693534,0.00087658,96111.0,96110.0,0.01354147]
[1736874693737,0.00087658,96111.0,96110.0,0.012]
[1736874693945,0.00087658,96111.0,96110.0,0.009]
[1736874694446,0.00087658,96111.0,96110.0,0.1142673]
[1736874694852,0.00087658,96111.0,96110.0,0.1052673]
[1736874695028,0.00087658,96111.0,96110.0,0.1082673]
[1736874695213,0.00087658,96111.0,96110.0,0.1132673]
[1736874695636,0.00087658,96111.0,96110.0,0.1082673]
[1736874695838,0.00087658,96111.0,96110.0,0.1172673]
[1736874696237,0.00087658,96111.0,96110.0,0.1082673]
[1736874696438,0.00087658,96111.0,96110.0,0.1172673]
[1736874696960,0.00087658,96111.0,96110.0,0.2672673]
[1736874697159,0.00087658,96111.0,96110.0,0.26322692]
[1736874697460,0.00087658,96111.0,96110.0,0.26722692]
[1736874697803,0.00087658,96111.0,96110.0,0.26322692]
[1736874698235,0.00087658,96111.0,96110.0,0.26722692]
[1736874698878,0.00087658,96111.0,96110.0,0.26322692]
[1736874699400,0.00087658,96111.0,96110.0,0.25422692]
[1736874699703,0.00087658,96111.0,96110.0,0.26322692]
[1736874699900,0.00087658,96111.0,96110.0,0.57691692]
[1736874700102,0.00087658,96111.0,96110.0,0.68591692]
[1736874700338,0.00087658,96111.0,96110.0,0.44692692]
[1736874700534,0.00087658,96111.0,96110.0,0.61748392]
[1736874700897,0.00087658,96111.0,96110.0,0.60054892]
[1736874701097,0.00087658,96111.0,96110.0,0.60654892]
[1736874701832,0.00087658,96111.0,96110.0,0.59754892]
[1736874702214,0.00087658,96111.0,96110.0,0.60654892]
[1736874702614,0.00050516,96111.0,96110.0,0.60654892]
[1736874702850,0.00050516,96111.0,96110.0,0.58068692]
[1736874703039,0.00050516,96111.0,96110.0,0.58247738]
[1736874703383,0.00050516,96111.0,96110.0,0.45171738]
[1736874703556,0.00050516,96111.0,96110.0,0.70386038]
[1736874703714,0.00050516,96111.0,96110.0,0.65317038]
[1736874705719,0.00050516,96111.0,96110.0,0.57375138]
[1736874705923,0.00050516,96111.0,96110.0,0.35171738]
[1736874706357,0.00050516,96111.0,96110.0,0.27101738]
[1736874708490,0.00050516,96111.0,96110.0,0.55196638]
[1736874709839,0.00050516,96111.0,96110.0,0.54596638]
[1736874710221,0.00050516,96111.0,96110.0,0.54796638]
[1736874710813,0.00050516,96111.0,96110.0,0.54596638]
[1736874711002,0.00050516,96111.0,96110.0,0.53896638]
[1736874711349,0.00050516,96111.0,96110.0,0.54496638]
[1736874711551,0.00050516,96111.0,96110.0,0.43473946]
[1736874712155,0.00050516,96111.0,96110.0,0.44173946]
[1736874712690,0.00050516,96111.0,96110.0,0.43973946]
[1736874712902,0.00050516,96111.0,96110.0,0.53696638]
[1736874713330,0.00050516,96111.0,96110.0,0.76586638]
[1736874713535,0.00050516,96111.0,96110.0,0.76886638]
[1736874713676,0.00050516,96111.0,96110.0,2.26886638]
[1736874714100,0.00050516,96111.0,96110.0,2.26586638]
[1736874714309,0.00050516,96111.0,96110.0,0.77786638]
[1736874714503,0.00050516,96111.0,96110.0,0.77186638]
[1736874714703,0.00050516,96111.0,96110.0,0.67186638]
[1736874714942,0.00050516,96111.0,96110.0,0.59826638]
[1736874718343,0.00050516,96111.0,96110.0,0.55196638]
[1736874720429,0.00050516,96111.0,96110.0,0.60170638]
[1736874722323,0.00050516,96111.0,96110.0,0.6342003]
[1736874724219,0.00050516,96111.0,96110.0,0.60170638]
[1736874724848,0.00050516,96111.0,96110.0,0.71020265]
[1736874725049,0.0008529,96141.0,96116.0,0.358081]
[1736874725271,0.0008529,96141.0,96116.0,0.49480419]
[1736874725619,0.0008529,96141.0,96116.0,0.54454419]
[1736874726154,0.0008529,96141.0,96116.0,0.54854419]
[1736874726365,0.0008529,96141.0,96116.0,0.55877352]
[1736874727670,0.0008529,96141.0,96116.0,0.56777352]
[1736874731572,0.0008534,96117.0,96116.0,0.56777352]
[1736874731915,0.0008534,96117.0,96116.0,0.70780153]
[1736874732750,0.0008534,96117.0,96116.0,1.11033453]
[1736874732954,0.0008534,96117.0,96116.0,0.97030652]
[1736874733555,0.0008534,96117.0,96116.0,1.07030652]
[1736874733762,0.0008534,96117.0,96116.0,2.57030652]
[1736874734932,4e-07,96117.0,96116.0,2.64630652]
[1736874735058,4e-07,96117.0,96116.0,2.36677352]
[1736874735261,0.0008529,96141.0,96140.0,0.208029]
[1736874735630,0.00100203,96141.0,96140.0,0.51199592]
[1736874735762,0.00100203,96141.0,96140.0,1.12454792]
[1736874735969,0.00100203,96141.0,96140.0,0.98521729]
[1736874736284,0.00100203,96141.0,96140.0,1.10821729]
[1736874736486,0.00100203,96141.0,96140.0,1.11721729]
[1736874736784,0.00100203,96141.0,96140.0,1.11862842]
[1736874736913,0.00100203,96141.0,96140.0,2.47877542]
[1736874737113,0.00100203,96141.0,96140.0,2.57877542]
[1736874737750,0.00100203,96141.0,96140.0,2.47100742]
[1736874738521,0.00100203,96141.0,96140.0,0.97100742]
[1736874738723,0.00100203,96141.0,96140.0,1.28655527]
[1736874739069,0.00100203,96141.0,96140.0,1.26738627]
[1736874739279,0.00100203,96141.0,96140.0,1.25838627]
[1736874739475,0.00100203,96141.0,96140.0,1.2319169]
[1736874739633,0.00100203,96141.0,96140.0,0.73773824]
[1736874739840,0.00100203,96141.0,96140.0,0.83773824]
[1736874740043,0.00100203,96141.0,96140.0,0.73773824]
[1736874740937,0.00100203,96141.0,96140.0,0.77074697]
[1736874741393,0.00100203,96141.0,96140.0,0.87409097]
[1736874741747,0.00100203,96141.0,96140.0,0.77074697]
[1736874741947,0.00100203,96141.0,96140.0,0.53740705]
[1736874742152,0.00100203,96141.0,96140.0,0.66170005]
[1736874742350,0.00100203,96141.0,96140.0,0.53740705]
[1736874744308,0.00100203,96141.0,96140.0,0.6773686]
[1736874745153,0.00100203,96141.0,96140.0,0.53740705]
[1736874745651,0.00100203,96141.0,96140.0,0.54157305]
[1736874745848,0.0008535,96145.0,96140.0,0.54157305]
[1736874745849,0.0008535,96145.0,96144.0,0.381021]
[1736874746023,0.0008535,96145.0,96144.0,1.31043092]
[1736874746348,0.0008535,96145.0,96144.0,2.69227692]
[1736874746506,0.0754,96172.0,96148.0,0.358012]
[1736874746711,0.0754,96180.0,96148.0,0.61587892]
[1736874746938,0.0754,96180.0,96148.0,0.76328192]
[1736874747117,0.0754,96155.0,96148.0,0.18963828]
[1736874748020,0.0754,96155.0,96148.0,0.04974]
[1736874748405,0.12926,96149.0,96148.0,0.04974]
[1736874748612,0.0754,96140.0,96126.0,0.13989828]
[1736874748813,0.0754,96140.0,96126.0,0.00014913]
[1736874748814,0.00104636,96139.0,96126.0,0.00014913]
[1736874749013,0.0754,96140.0,96126.0,0.00014913]
[1736874749014,0.214394,96138.0,96126.0,0.00014913]
[1736874749289,0.2133699,96137.0,96126.0,0.00014913]
[1736874749498,0.0053339,96137.0,96126.0,0.00014913]
[1736874749844,0.283431,96140.0,96126.0,0.00014913]
[1736874750045,0.002,96138.0,96126.0,0.00014913]
[1736874750252,0.00532563,96137.0,96126.0,0.00014913]
[1736874750724,0.0004,96149.0,96148.0,0.358012]
[1736874750927,0.0471,96183.0,96148.0,0.358012]
[1736874750928,0.09342738,96168.0,96151.0,0.15]
[1736874751106,0.09342738,96168.0,96167.0,0.207971]
[1736874751305,0.09342738,96168.0,96167.0,0.10422692]
[1736874751943,0.0754,96179.0,96173.0,0.207956]
[1736874752699,0.07554913,96179.0,96173.0,0.207956]
[1736874752900,0.07554913,96179.0,96178.0,0.207947]
[1736874753472,0.07754913,96179.0,96173.0,0.207956]
[1736874753676,0.07854913,96179.0,96174.0,0.207956]
[1736874753882,0.07754913,96179.0,96174.0,0.207956]
[1736874754078,0.07754913,96179.0,96178.0,0.207947]
[1736874754237,0.07754913,96179.0,96178.0,0.209947]
[1736874754432,0.07754913,96179.0,96178.0,0.002]
[1736874754706,0.07554913,96179.0,96178.0,0.002]
[1736874754835,0.07554913,96179.0,96178.0,0.209947]
[1736874755459,0.07554913,96179.0,96178.0,0.207947]
[1736874756355,0.07554913,96179.0,96178.0,0.209947]
[1736874758905,0.00014913,96179.0,96178.0,0.209947]
[1736874759367,0.00014913,96179.0,96178.0,0.002]
[1736874760183,0.00014913,96179.0,96178.0,0.10726657]
[1736874760760,0.00100273,96179.0,96178.0,0.10726657]
[1736874761753,0.00100273,96179.0,96178.0,0.10622692]
[1736874761972,0.00100273,96179.0,96178.0,0.002]
[1736874762377,0.00100273,96179.0,96178.0,0.005]
[1736874762577,0.20894773,96179.0,96178.0,0.003]
[1736874762783,0.00100273,96179.0,96178.0,0.003]
[1736874762981,0.00100273,96179.0,96178.0,0.005]
[1736874763183,0.00100273,96179.0,96178.0,0.003]
[1736874763612,0.00100273,96179.0,96178.0,0.007]
[1736874763784,0.00100273,96179.0,96178.0,0.10422692]
[1736874763985,0.00100273,96179.0,96178.0,0.10722692]
[1736874764188,0.00100273,96179.0,96178.0,0.31717392]
[1736874764595,0.00100273,96179.0,96178.0,0.10622692]
[1736874764931,0.00100273,96179.0,96178.0,0.31417392]
[1736874765530,0.00100273,96179.0,96178.0,0.31217392]
[1736874765705,0.00100273,96179.0,96178.0,0.31317392]
[1736874765912,0.00100273,96179.0,96178.0,0.31817392]
[1736874766536,0.00100273,96179.0,96178.0,0.31317392]
[1736874766906,0.00100273,96179.0,96178.0,0.31917392]
[1736874767312,0.00100273,96179.0,96178.0,0.32117392]
[1736874769951,0.08110273,96179.0,96178.0,0.32117392]
[1736874770301,0.00100273,96179.0,96178.0,0.32117392]
[1736874771220,0.00100273,96179.0,96178.0,0.11322692]
[1736874772690,0.00100273,96179.0,96178.0,0.10622692]
[1736874773095,0.00100273,96179.0,96178.0,0.11122692]
[1736874773334,0.00100273,96179.0,96178.0,0.10922692]
[1736874773526,0.00100273,96179.0,96178.0,0.31817392]
[1736874774327,0.00100273,96179.0,96178.0,0.11022692]
[1736874774984,0.20792,96191.0,96178.0,0.11022692]
[1736874775122,0.20841691,96191.0,96178.0,0.11022692]
[1736874775820,0.20841691,96191.0,96179.0,0.207945]
[1736874776503,0.207929,96187.0,96178.0,0.10422692]
[1736874776909,0.207921,96190.0,96178.0,0.10422692]
[1736874778256,0.208921,96190.0,96178.0,0.10422692]
[1736874778469,0.208921,96190.0,96179.0,0.207945]
[1736874779475,0.207921,96190.0,96179.0,0.207945]
[1736874779821,0.208921,96190.0,96179.0,0.207945]
[1736874781659,0.208921,96190.0,96178.0,0.10422692]
[1736874782253,0.208921,96190.0,96179.0,0.207945]
[1736874782617,0.415842,96190.0,96178.0,0.10422692]
[1736874782787,0.00049691,96191.0,96178.0,0.10422692]
[1736874782999,0.207923,96189.0,96178.0,0.10422692]
[1736874783489,0.001,96190.0,96178.0,0.10422692]
[1736874783694,0.00104636,96189.0,96174.0,0.207955]
[1736874783915,0.00049691,96191.0,96171.0,0.15103964]
[1736874784153,0.00149691,96191.0,96172.0,0.31218692]
[1736874784511,0.207936,96184.0,96172.0,0.31218692]
[1736874784712,0.0008536,96190.0,96172.0,0.10422692]
[1736874784917,0.207942,96181.0,96172.0,0.10422692]
[1736874785136,0.207942,96181.0,96170.0,0.21839368]
[1736874785137,0.207948,96178.0,96170.0,0.01043068]
[1736874785343,0.00104636,96189.0,96171.0,0.207962]
[1736874785706,0.207926,96188.0,96166.0,0.00103973]
[1736874785953,0.207926,96188.0,96178.0,0.001]
[1736874786280,0.207926,96188.0,96168.0,0.15103973]
[1736874786423,0.207938,96183.0,96171.0,0.001]
[1736874786992,0.207938,96183.0,96172.0,0.20796]
[1736874789162,0.207938,96183.0,96172.0,0.41592]
[1736874789493,0.207938,96183.0,96172.0,0.20796]
[1736874789921,0.207938,96183.0,96175.0,0.207953]
[1736874790126,0.207938,96183.0,96172.0,0.20896]
[1736874790993,0.13768633,96182.0,96172.0,0.001]
[1736874791221,0.207955,96175.0,96172.0,0.001]
[1736874791421,0.207935,96184.0,96172.0,0.001]
[1736874791595,0.08176,96188.0,96172.0,0.001]
[1736874791596,0.207952,96176.0,96172.0,0.001]
[1736874791799,0.207944,96180.0,96172.0,0.001]
[1736874791938,0.00104636,96179.0,96172.0,0.001]
[1736874792138,0.00104636,96179.0,96150.0,0.0485]
[1736874792405,0.20798,96164.0,96147.0,0.0808]
[1736874792606,0.20798,96164.0,96147.0,0.288814]
[1736874792984,0.20798,96163.0,96151.0,0.01239616]
[1736874793188,0.20798,96163.0,96151.0,0.00179256]
[1736874793551,0.00104636,96162.0,96151.0,0.00379256]
[1736874793765,0.207997,96155.0,96151.0,0.00179256]
[1736874793968,0.415995,96155.0,96151.0,0.00179256]
[1736874795015,0.208001,96153.0,96151.0,0.00294169]
[1736874795221,0.00636,96158.0,96151.0,0.00494169]
[1736874795573,0.00636,96158.0,96151.0,0.00294169]
[1736874795834,0.207993,96157.0,96151.0,0.00394169]
[1736874796224,0.207993,96157.0,96151.0,0.00294169]
[1736874796402,0.207993,96157.0,96151.0,0.00194169]
[1736874796609,0.415986,96157.0,96151.0,0.00194169]
[1736874797530,0.416986,96157.0,96151.0,0.00194169]
[1736874798095,0.207995,96156.0,96151.0,0.00194169]
[1736874799027,0.208003,96153.0,96151.0,0.00194169]
[1736874799545,0.1396995,96152.0,96151.0,0.00194169]
[1736874799766,0.18247328,96152.0,96151.0,0.00194169]
[1736874799969,0.35207328,96152.0,96151.0,0.00194169]
[1736874800178,0.47206828,96152.0,96151.0,0.00194169]
[1736874800381,0.48245446,96152.0,96151.0,0.00194169]
[1736874800596,0.64876175,96152.0,96151.0,0.00194169]
[1736874800814,0.75298867,96152.0,96151.0,0.00194169]
[1736874801449,0.73668138,96152.0,96151.0,0.00394169]
[1736874801668,0.35,96149.0,96148.0,14.96660124]
[1736874801837,0.55442692,96149.0,96148.0,14.96660124]
[1736874802445,0.55442692,96149.0,96148.0,14.88339724]
[1736874802645,0.55442692,96149.0,96148.0,14.61833624]
[1736874802646,0.59195384,96149.0,96148.0,14.61833624]
[1736874802853,0.60655384,96149.0,96148.0,14.59323624]
[1736874803027,0.60655384,96149.0,96148.0,14.55263424]
[1736874803455,0.61155384,96149.0,96148.0,14.55263424]
[1736874803870,0.60655384,96149.0,96148.0,14.55263424]
[1736874804104,0.60655384,96149.0,96148.0,14.53963422]
[1736874804410,0.61255384,96149.0,96148.0,14.53963422]
[1736874804789,0.61455384,96149.0,96148.0,14.54063422]
[1736874805896,0.61455384,96149.0,96148.0,14.51909488]
[1736874807663,0.61455384,96149.0,96148.0,14.52088681]
[1736874808510,0.61455384,96149.0,96148.0,0.00379193]
[1736874809030,0.61455384,96149.0,96148.0,0.00179193]